Cogmind - Beta 15 @@@ ROGUE MODE // 2025.09.13 @ 15:35:40 Player: beans Result: Destroyed by Y-45 Defender with Heavy Assault Rifle Performance ------------- Evolutions (1) 500 Regions Visited (3) 600 Robots Destroyed (35) 175 Value Destroyed (833) 833 Prototype IDs (4) 80 Alien Tech Used (0) 0 Bonus (0) 0 TOTAL SCORE: 2188 Bonus ------- None Cogmind --------- Core Integrity 0/400 Matter 290/300 Energy 74/100 System Corruption 0% Temperature Cool (18) Movement Treading (160) Location -9/Storage Parts ------- > --- POWER (1) -------- (None) > --- PROPULSION (2) --- Light Treads Improved Treads > --- UTILITY (4) ------ Advanced Targeting Computer Advanced Targeting Computer Advanced Targeting Computer Advanced Targeting Computer > --- WEAPON (2) ------- Beam Rifle Beam Rifle > --- INVENTORY (5) ---- Improved Heat Sink Large Storage Unit System Shield System Shield Plasma Cutter Peak State ------------ > --- POWER ------------ Heavy Ion Engine > --- PROPULSION ------- Light Treads Improved Treads > --- UTILITY ---------- Advanced Targeting Computer Advanced Targeting Computer Advanced Targeting Computer Advanced Targeting Computer > --- WEAPON ----------- Improved Assault Rifle Plasma Cutter > --- INVENTORY -------- Heat Sink Large Storage Unit System Shield System Shield Medium Laser [Rating: 23] Favorites ----------- Power Heavy Ion Engine Engine Heavy Ion Engine Power Core Light Nuclear Core Propulsion Light Treads Treads Light Treads Utility Advanced Targeting Computer Device Heat Sink Processor Advanced Targeting Computer Weapon Improved Assault Rifle Energy Gun Medium Laser Energy Cannon Beam Cannon Ballistic Gun Improved Assault Rifle Launcher Grenade Launcher Special Weapon Plasma Cutter Build | -11 -10 -9 -9 ------- Run | Yrd Mat Mat Sto Slots Evolved 2 | . . 2 . Power . | . . . . Propulsion . | . . . . Utility 2 | . . 2 . Weapon . | . . . . Parts Attached 28 | 5 6 17 . Power 4 | 1 1 2 . Engine 3 | 1 . 2 . Core 1 | . 1 . . Reactor . | . . . . Propulsion 5 | 2 . 3 . Treads 5 | 2 . 3 . Leg . | . . . . Wheel . | . . . . Hover . | . . . . Flight . | . . . . Utility 7 | . 3 4 . Device 3 | . 3 . . Storage . | . . . . Processor 4 | . . 4 . Hackware . | . . . . Protection . | . . . . Artifact . | . . . . Weapon 12 | 2 2 8 . Energy Gun 5 | 2 . 3 . Energy Cannon 2 | . 2 . . Ballistic Gun 3 | . . 3 . Ballistic Cannon . | . . . . Launcher 1 | . . 1 . Special Weapon 1 | . . 1 . Impact Weapon . | . . . . Slashing Weapon . | . . . . Piercing Weapon . | . . . . Special Melee Weapon . | . . . . Unidentified Prototypes 2 | . . 2 . Parts Lost 13 | . . 13 . Power 2 | . . 2 . Propulsion 3 | . . 3 . Utility 1 | . . 1 . Weapon 7 | . . 7 . Highest Loss Streak 7 | . . 7 . To Critical Strikes 1 | . . 1 . Average Backups 3 | . 1 4 5 Power . | . . . . Propulsion . | . . . . Utility 2 | . 1 3 4 Weapon . | . . . . Tool/Special . | . . . . Unused Backups 4 | . . . 4 Power . | . . . . Propulsion . | . . . . Utility 4 | . . . 4 Weapon . | . . . . Tool/Special . | . . . . Average Slot Usage (%) 77 | . 95 68 88 Engine 7 | . 12 5 . Core 1 | . 1 1 . Treads 18 | . 28 15 22 Device 9 | . 24 3 . Processor 18 | . . 25 44 Energy Gun 8 | . 19 3 22 Energy Cannon 4 | . 8 2 . Ballistic Gun 5 | . . 8 . Launcher 2 | . . 3 . Peak Build Rating 23 | 5 11 23 20 Average Rating 12 | 3 7 14 19 On Entrance 9 | . 5 11 20 Naked Turns . | . . . . Heaviest Build 14 | 8 13 14 6 Greatest Support 43 | 40 40 43 43 Greatest Overweight (x) 4 | . . 4 . Average Overweight (x) . | . . . . Largest Inventory Capacity 5 | 5 5 5 5 Average Capacity 5 | 5 5 5 5 Most Carried 5 | 2 5 5 5 Average Carried 3 | . 1 4 5 Final Capacity 5 | 5 5 5 5 Final Carried 5 | . 5 5 5 Class Distribution -------------------- 100% | Mutant Dominant Class ---------------- Mutant | -10/Materials Mutant | -9/Materials Mutant | -9/Storage Resources | -11 -10 -9 -9 ----------- Run | Yrd Mat Mat Sto Matter Collected 667 | 213 97 357 . Remotely . | . . . . Salvage Created 1045 | . 269 776 . Parts 59 | . 7 52 . Haulers Intercepted 1 | . . 1 . Recyclers Shooed . | . . . . Parts Field Recycled . | . . . . Retrieved Matter . | . . . . Parts Self-Destructed . | . . . . Prevented . | . . . . Kills | -11 -10 -9 -9 ------- Run | Yrd Mat Mat Sto Combat Hostiles Destroyed 29 | . 8 21 . Guns 16 | . 5 11 . Cannons 4 | . 1 3 . AOE 5 | . . 5 . Classes Destroyed 7 | . 2 5 . Worker 1 | . . 1 . Hauler 1 | . . 1 . Recycler 1 | . . 1 . Watcher 3 | . . 3 . Swarmer 14 | . 3 11 . Grunt 8 | . 5 3 . Sentry 7 | . . 7 . Best Kill Streak 9 | . 3 9 . Combat Bots Only 8 | . 3 8 . Max Kills in Single Turn 3 | . 1 3 . Gunslinging . | . . . . Exploded 3 | . . 3 . Melee . | . . . . Uniques/NPCs Destroyed . | . . . . Combat | -11 -10 -9 -9 -------- Run | Yrd Mat Mat Sto Hostile Shots Fired 255 | . 63 190 2 Missed 69 | . 17 51 1 Hits 186 | . 46 139 1 Projectile 186 | . 46 139 1 Critical Strikes 2 | . 1 1 . Damage Taken 1959 | . 500 1446 13 Core 500 | . 99 388 13 Absorbed by Shields . | . . . . Core Remaining (%) 80 | 100 60 . . Volleys Fired 120 | 4 28 86 2 Largest 2 | 2 2 2 2 Hottest 120 | 90 120 120 112 Shots Fired 200 | 8 56 132 4 Gun 151 | 8 32 107 4 Cannon 42 | . 24 18 . Launcher 7 | . . 7 . Special . | . . . . Kinetic 69 | . . 69 . Thermal 124 | 8 56 56 4 Explosive 7 | . . 7 . Electromagnetic . | . . . . Robot Hit Streak 42 | 3 6 42 30 Robot Miss Streak 2 | 2 2 2 . Penetration Max . | . . . . Secondary Targets 4 | . 1 3 . Max Gunslinging Chain 1 | . 1 1 . Shots Hit Robots 154 | 5 42 103 4 Core Hits 51 | . 10 41 . Critical Kills 1 | . 1 . . Critical Parts Destroyed . | . . . . Critical Strikes 9 | 1 3 5 . Burn 8 | 1 2 5 . Meltdown 1 | . 1 . . Melee Attacks . | . . . . Impact . | . . . . Slashing . | . . . . Piercing . | . . . . Sneak Attacks . | . . . . Combat Hostiles . | . . . . Follow-up Attacks . | . . . . Damage Inflicted 2448 | 57 599 1734 58 Guns 1543 | 57 322 1106 58 Cannons 451 | . 277 174 . Explosions 454 | . . 454 . Melee . | . . . . Ramming . | . . . . Kinetic 668 | . . 668 . Thermal 1326 | 57 599 612 58 Explosive 454 | . . 454 . Electromagnetic . | . . . . Impact . | . . . . Slashing . | . . . . Piercing . | . . . . Highest Corruption . | . . . . Average Corruption . | . . . . Corruption Purged . | . . . . Corruption Blocked . | . . . . Overload Shots . | . . . . Overflow Damage 31 | . . 31 . Projectiles . | . . . . Explosions 31 | . . 31 . Melee . | . . . . Knockbacks . | . . . . Impact . | . . . . Kinetic . | . . . . Secondary . | . . . . Self-Inflicted Damage 11 | . . 11 . Shots 1 | . . 1 . Rammed . | . . . . Targets Rammed . | . . . . Kicked . | . . . . Crushed . | . . . . Highest Temperature 126 | 90 44 126 27 Average Temperature 30 | 40 25 33 13 Received Heat Transfer 528 | . 243 285 . Siege Activations . | . . . . Martial Activations . | . . . . Shielding Activations . | . . . . Robots Disrupted . | . . . . Combat Hostiles . | . . . . Robots Corrupted . | . . . . Combat Hostiles . | . . . . Parts Fried . | . . . . Impact Corruptions . | . . . . Robots Melted 4 | . 2 2 . Combat Hostiles 4 | . 2 2 . Parts Melted 16 | . 6 10 . Heat Transferred 3853 | 235 1583 1887 148 Parts Sabotaged . | . . . . Parts Stolen . | . . . . Parts Stripped . | . . . . Power Chain Reactions . | . . . . Alert | -11 -10 -9 -9 ------- Run | Yrd Mat Mat Sto Maximum Alert Level . | . . . . Low Security (%) 100 | 100 100 100 100 Level 1 . | . . . . Level 2 . | . . . . Level 3 . | . . . . Level 4 . | . . . . Level 5 . | . . . . High Security . | . . . . Max Security . | . . . . Peak Influence 185 | . 90 185 75 Initial 75 | . . 37 75 Average 73 | . 33 96 70 Influence Increases 840 | . 200 640 . Destroy 0b10 Robot/C 580 | . 160 420 . Destroy 0b10 Robot/NC 30 | . . 30 . Destroy Leader 158 | . 40 118 . Successful Hack 7 | . . 7 . Disable Machine 15 | . . 15 . Destroy Structure 50 | . . 50 . Influence Decreases 775 | . 110 551 114 Entered New Map 157 | . . 53 104 Time Decay 488 | . 110 368 10 Lost Part 130 | . . 130 . Squads Dispatched 2 | . 1 . 1 Investigation 1 | . 1 . . Extermination . | . . . . Reinforcement 1 | . . . 1 Assault . | . . . . Garrison . | . . . . Intercept . | . . . . Searches Triggered . | . . . . Construction Impeded . | . . . . Haulers Reinforced . | . . . . Active Scanning Responses . | . . . . Cargo Convoy Interrupts . | . . . . Stealth | -11 -10 -9 -9 --------- Run | Yrd Mat Mat Sto Distress Signals 2 | . . 1 1 Communications Jammed . | . . . . Distress Signals . | . . . . Times Spotted 39 | . 10 27 2 Peak Tracking Total 6 | . 4 6 2 Tactical Retreats . | . . . . Traps | -11 -10 -9 -9 ------- Run | Yrd Mat Mat Sto Traps Triggered 2 | . 1 . 1 Indirectly . | . . . . Trap Hack Attempts . | . . . . Triggered . | . . . . Disarmed . | . . . . Reprogrammed . | . . . . Reused . | . . . . Traps Extracted . | . . . . Installed . | . . . . Triggered . | . . . . Machines | -11 -10 -9 -9 ---------- Run | Yrd Mat Mat Sto Machines Disabled 1 | . . 1 . Max in Single Turn 1 | . . 1 . Machines Repaired . | . . . . Machines Dismantled 1 | . . 1 . Machines Sabotaged . | . . . . Overloaded Fab Kills . | . . . . Hacking | -11 -10 -9 -9 --------- Run | Yrd Mat Mat Sto Machines Accessed 2 | . . 2 . Terminals 2 | . . 2 . Fabricators . | . . . . Repair Stations . | . . . . Recycling Units . | . . . . Scanalyzers . | . . . . Garrison Access . | . . . . Total Hacks 5 | . . 5 . Successful 3 | . . 3 . Failed 2 | . . 2 . Catastrophic . | . . . . Database Lockouts . | . . . . Manual . | . . . . Terminals 5 | . . 5 . Fabricators . | . . . . Repair Stations . | . . . . Recycling Units . | . . . . Scanalyzers . | . . . . Garrison Access . | . . . . Terminal Hacks 3 | . . 3 . Robot Analysis 1 | . . 1 . Prototype ID Bank 1 | . . 1 . Registered Components 1 | . . 1 . Fabricator Hacks . | . . . . Repair Station Hacks . | . . . . Recycling Unit Hacks . | . . . . Scanalyzer . | . . . . Garrison Access Hacks . | . . . . Unauthorized Hacks . | . . . . Terminals . | . . . . Fabricators . | . . . . Repair Stations . | . . . . Recycling Units . | . . . . Scanalyzers . | . . . . Garrison Access . | . . . . Data Cores Recovered . | . . . . Used . | . . . . Hacking Detections 2 | . . 2 . Full Trace Events . | . . . . Feedback Events . | . . . . Feedback Blocked . | . . . . Robot Schematics Acquired . | . . . . Robots Built . | . . . . Authchips . | . . . . Time . | . . . . Total Robot Build Rating . | . . . . Part Schematics Acquired . | . . . . Parts Built . | . . . . Authchips . | . . . . Time . | . . . . Total Part Build Rating . | . . . . Parts Repaired . | . . . . Time . | . . . . Parts Recycled . | . . . . Recycled Matter . | . . . . Retrieved Matter . | . . . . Retrieved Components . | . . . . Parts Scanalyzed . | . . . . Part Schematics Acquired . | . . . . Parts Damaged . | . . . . Bothacking | -11 -10 -9 -9 ------------ Run | Yrd Mat Mat Sto Used RIF Installer . | . . . . Robots Hacked . | . . . . Non-combat . | . . . . Combat . | . . . . Robot Hacks Applied . | . . . . Relay Couplers Released . | . . . . Fabnet Peak Effective % . | . . . . Robots Rewired . | . . . . Allies Hacked . | . . . . Hacks Repelled . | . . . . Allies | -11 -10 -9 -9 -------- Run | Yrd Mat Mat Sto Total Allies . | . . . . Largest Group . | . . . . Highest-Rated Group . | . . . . Highest-Rated Ally . | . . . . Total Orders . | . . . . Ally Attacks . | . . . . Total Damage . | . . . . Kills . | . . . . Allies Corrupted . | . . . . Allies Melted . | . . . . Intel | -11 -10 -9 -9 ------- Run | Yrd Mat Mat Sto Active Infowar (turns) . | . . . . Robot Analysis Total 1 | . . 1 . Derelict Logs Recovered . | . . . . Drone Launches . | . . . . Drone Recoveries . | . . . . Exploration | -11 -10 -9 -9 ------------- Run | Yrd Mat Mat Sto Turns Passed 1286 | 76 334 840 36 Spaces Moved 544 | 43 140 343 18 Core 104 | 12 . 92 . Treads 440 | 31 140 251 18 Legs . | . . . . Wheels . | . . . . Hover . | . . . . Flight . | . . . . Fastest Speed 50 | 50 160 50 160 Average Speed 161 | 129 160 165 160 Slowest Speed 250 | 160 160 250 160 Overloaded Moves . | . . . . Propulsion Burnouts . | . . . . Robots Hopped . | . . . . Potential Cave-ins . | . . . . Cave-ins Triggered . | . . . . Exploration Rate (%) 17 | 4 29 32 6 Regions Visited 3 Branch Regions 1 Pre-discovered Areas . | . . . . Known Exits Taken . | . . . . Unknown Exits Taken 3 | 1 1 1 . Scrap Searched . | . . . . Spaces Dug 8 | . . 8 . Terrain Destroyed 52 | . . 52 . Melee . | . . . . Projectile . | . . . . AOE 52 | . . 52 . Terrain Rammed . | . . . . Walls Destroyed . | . . . . Machines Disabled . | . . . . Actions | -11 -10 -9 -9 --------- Run | Yrd Mat Mat Sto Total 745 | 56 193 475 21 Wait 16 | . 12 4 . Move 541 | 42 139 342 18 Hop . | . . . . Pick Up 22 | 5 7 10 . Fast Attach 12 | . 1 10 1 Attach 16 | 5 2 9 . Detach . | . . . . Swap 4 | . 3 1 . Drop 7 | . 1 6 . Fire 120 | 4 28 86 2 Melee . | . . . . Ram . | . . . . Kick . | . . . . Crush . | . . . . Escape Stasis . | . . . . Rewire . | . . . . Trap . | . . . . Miscellaneous 7 | . . 7 . Route ------- -11/Scrapyard -10/Materials -9/Materials -9/Storage History --------- Turn | Location | Event 3 | -11/Scrapyard | Discovered new exit (range 15) 77 | -11/Scrapyard | Entered Materials 304 | -10/Materials | Build established: Mutant 350 | -10/Materials | Discovered new exit (range 5) 411 | -10/Materials | Entered another Materials area 411 | -9/Materials | Evolved 2 slots: Utility x2 538 | -9/Materials | Destroyed 8 combat bots 541 | -9/Materials | Lost 7 parts (1p2n1u3w) 756 | -9/Materials | Core integrity fell below 50% 1064 | -9/Materials | Core integrity fell below 20% 1229 | -9/Materials | Discovered new exit (range 6) 1251 | -9/Materials | Entered Storage 1287 | -9/Storage | Destroyed by Y-45 Defender with Heavy Assault Rifle Last Messages --------------- Lgt. Armor Plating melted. Heat Sink melted. Lgt. Treads melted. EXIT=FOUND Y-45 Defender heat damages core (-6). Lgt. Armor Plating melted. Hvy. Assault Rifle melted. Heat Sink melted. LOCATION=UNKNOWN GOAL=ESCAPE O-16 Technician: "IFF HANDSHAKE FAILED. SECURING TERMINAL." O-16 Technician sends out distress signal. ALERT: Hostiles spotted, dispatching reinforcements to Terminal S017. Triggered Blade Trap. Massive razor-sharp blades shoot up from within the floor. Lgt. Treads severed. Acquired Lgt. Treads. Map ----- +----------------------------------------------------+ | | | | | | | | | | | | | | | | | | | | | | | | | | | | | ???????????##?###???????????????????????????????? | | ??????????# ??#???????????????????????????? | | ??????????# """ #???????????????????????????? | | ??????????# "R" """ #???????????????????????????? | | ??????????# " " """ #???????????????????????????? | | ??????????# """ #???????????????????????????? | | ??????????# #???????????????????????????? | | ??????????? ????????????????????????????? | | ????????????? ??????????????????????????????? | | ?????????######+###########+###?????????????????? | | ?????????# ^ #?????????????????? | | ?????????# @ #?????????????????? | | ?????????# Y #?????????????????? | | ?????????######+########### #?????????????????? | | ????????????? #?????????? #?????????????????? | | ????????????# T#?????????? #?????????????????? | | ????????????##"""##?????????????????????????????? | | ????????????????????????????????????????????????? | | ????????????????????????????????????????????????? | | ????????????????????????????????????????????????? | | ????????????????????????????????????????????????? | | ????????????????????????????????????????????????? | | ????????????????????????????????????????????????? | | ????????????????????????????????????????????????? | | ????????????????????????????????????????????????? | | ????????????????????????????????????????????????? | | ????????????????????????????????????????????????? | | ????????????????????????????????????????????????? | | ????????????????????????????????????????????????? | | ????????????????????????????????????????????????? | | ????????????????????????????????????????????????? | | ????????????????????????????????????????????????? | | ????????????????????????????????????????????????? | | ????????????????????????????????????????????????? | | ????????????????????????????????????????????????? | | ????????????????????????????????????????????????? | +----------------------------------------------------+ Best States ------------- Heat Dissipation 52 Energy Generation 14 Energy Capacity 280 Matter Stores 300 Matter Capacity 300 Sight Range 16 Terrain Scan Density 10 Evasion (%) 50 Targeting Accuracy 32 Recoil Reduction 2 Item Schematics ----------------- None Robot Schematics ------------------ None Fabricated ------------ Nothing Repaired ---------- Nothing Alien Tech Used ----------------- None Achievements -------------- None Challenges ------------ None Game ------ Seed CombatBiocellUnit Manual? 0 Play Time 00:09:42 Cumulative 136.3 hours Start 2025.09.13 @ 10:53:05 End 2025.09.13 @ 15:35:40 Sessions 1 Manual Loads 0 Difficulty Rogue Special Mode None Game No. 463 Rogue 463 Adventurer 0 Explorer 0 Win Type - Total 0 Types 0/0/0/0/0/0/0/0/0/0 Lore% 51 Gallery% 49 Achievement% 36 Wizard Run 0 Options --------- Layout 2 ASCII 0 Keyboard 0 Movement Mouse Keybinds 0 Fullscreen 1 Font 24/Smallcaps Map View 50x44 Zoom Use 0% Tactical HUD 0 Map Filters NONE Filters NONE Steam 1 RUN: 429da8bd-16cd-4a7f-b1c5-caf55a826927